[Event "Rohde op 12th"]
[Site "Sautron"]
[Date "2012.11.01"]
[Round "7"]
[White "Lagarde, Maxime"]
[Black "Arnaudov, Petar G"]
[Result "1-0"]
[ECO "A18"]
[WhiteElo "2501"]
[BlackElo "2471"]
[Annotator "RR"]
[PlyCount "155"]
[EventDate "2012.10.27"]
[EventType "swiss"]
[EventRounds "9"]
[EventCountry "FRA"]
[SourceTitle "EXT 2014"]
[Source "ChessBase"]
[SourceDate "2013.11.20"]
[SourceVersion "1"]
[SourceVersionDate "2013.11.20"]
[SourceQuality "1"]
[TimeControl "40/5400+30:1800+30"]
[WhiteClock "1:30:00"]
[BlackClock "1:30:00"]

1. c4 {[%emt 0:00:00]} Nf6 {[%emt 0:00:00]} 2. Nc3 {[%emt 0:00:00]} e6 {
[%emt 0:00:00]} 3. e4 {[%emt 0:00:01]} d5 {[%emt 0:00:17]} (3... c5 {
L'alternative dans cette variante Mikenas}) 4. e5 {[%emt 0:00:07]} (4. cxd5
exd5 5. e5) 4... d4 {[%emt 0:00:03]} 5. exf6 {[%emt 0:00:04]} dxc3 {[%emt 0:00:
05]} 6. bxc3 {[%emt 0:00:07]} Qxf6 {[%emt 0:00:04]} 7. Nf3 {[%emt 0:00:04]} (7.
d4 c5) 7... e5 {[%emt 0:00:15]} (7... b6 8. d4 Bb7 9. Bd3 (9. Be2)) 8. Bd3 {
[%emt 0:00:06]} (8. d4) 8... Nc6 $6 {[%emt 0:10:56]} (8... Na6 {[%cal Ga6c5]
Plus souple} 9. O-O Bd6 10. Bc2 Bg4 11. d4 Bxf3 12. Qxf3 Qxf3 13. gxf3 O-O-O (
13... exd4 14. Re1+) 14. c5 Bf8 15. Bg5 f6 16. Be3 exd4 17. cxd4 Nb4 18. Bf5+
Kb8 $11 {Hauchard,A (2518)-Delgado Ramirez,N (2506) Capablanca Memorial
Premier II 37th 2002 (5) 1/2}) (8... Bd6 9. O-O) 9. O-O {[%emt 0:01:43]} Bf5 {
[%emt 0:00:29]} (9... Bc5 $5) (9... Bd6 10. Rb1 {[%csl Rb7]} O-O 11. Be4 Bf5 $1
12. Bxf5 Qxf5 13. Rxb7 Na5 $11 {[%cal Ga5c4,Ga5b7]}) 10. Bxf5 {[%emt 0:03:58]}
Qxf5 {[%emt 0:01:17]} 11. d4 {[%emt 0:03:53]} O-O-O {[%emt 0:05:51] Un plan
risqué} 12. Be3 {[%emt 0:13:01]} f6 $146 {[%emt 0:15:31]} (12... Bd6 13. Rb1 e4
14. Nd2 {Stripunsky,A (2553)-Garcia,G (2461) Montreal-B 5th 2004 (6) 1/2}) 13.
Rb1 {[%emt 0:03:31][%csl Rb7][%cal Gd1b3]} b6 {[%emt 0:01:12]} 14. Qa4 {
[%emt 0:07:42]} (14. c5 $5 exd4 15. cxd4) 14... Kb7 {[%emt 0:00:11]} 15. d5 {
[%emt 0:05:25]} (15. c5) 15... Nb8 {[%emt 0:00:42]} 16. Nd2 {[%emt 0:03:17]
[%cal Gd2b3,Gb3a5]} Qd7 {[%emt 0:02:27]} 17. Qc2 {[%emt 0:01:52]} Na6 {[%emt 0:
05:00]} 18. Rb5 {[%emt 0:13:33]} c6 {[%emt 0:16:09]} 19. dxc6+ {[%emt 0:01:13]}
Qxc6 {[%emt 0:00:06]} 20. a4 {[%emt 0:01:46]} Kc7 {[%emt 0:04:00]} 21. a5 $36 {
[%emt 0:06:27]} Bc5 {[%emt 0:00:39]} 22. Bxc5 {[%emt 0:00:39]} Nxc5 {[%emt 0:
00:11]} 23. axb6+ {[%emt 0:00:08]} axb6 {[%emt 0:00:05]} 24. Rfb1 $40 {[%emt 0:
00:17]} Rb8 {[%emt 0:05:31][%csl Rb8]} 25. Nf1 $1 {[%emt 0:01:28][%cal Gf1e3,
Ge3d5] Ramenant une pièce supplémentaire en attaque} g6 {[%emt 0:14:18]} 26.
Ne3 $40 {[%emt 0:04:57][%csl Gd5]} Rhd8 {[%emt 0:00:58]} 27. Nd5+ {[%emt 0:00:
59]} Rxd5 {[%emt 0:00:04]} 28. cxd5 {[%emt 0:00:04]} Qxd5 {[%emt 0:00:05]} 29.
Qb2 {[%emt 0:00:39]} Qc6 {[%emt 0:01:41]} 30. Qa2 {[%emt 0:01:05]} Ne6 {
[%emt 0:01:04]} 31. h4 {[%emt 0:05:32]} Ra8 {[%emt 0:01:19]} 32. Qb3 {[%emt 0:
01:18]} Rb8 {[%emt 0:02:52]} 33. Rb4 {[%emt 0:01:52]} Rb7 {[%emt 0:00:38]} 34.
h5 {[%emt 0:04:35]} gxh5 {[%emt 0:00:34]} 35. Rc4 {[%emt 0:00:22]} Nc5 {
[%emt 0:00:10]} 36. Qd1 {[%emt 0:00:11]} b5 {[%emt 0:04:09]} 37. Rcb4 {[%emt 0:
06:34]} Ne4 {[%emt 0:03:37]} 38. R4b3 {[%emt 0:01:05]} (38. Qxh5 Nxc3) 38...
Nc5 {[%emt 0:02:29]} 39. Ra3 {[%emt 0:02:23]} Ne6 {[%emt 0:00:59]} 40. Qxh5 $2
{[%emt 0:00:00]} Qxg2+ $1 {[%emt 0:00:00]} 41. Kxg2 {[%emt 0:02:09]} Nf4+ {
[%emt 0:00:25]} 42. Kf3 {[%emt 0:02:06]} Nxh5 {[%emt 0:00:06]} 43. Rab3 {
[%emt 0:11:26]} (43. Rh1 {[%cal Gh1h7]} Nf4 44. Rxh7+ Kb6 45. Rxb7+ Kxb7) 43...
Kc6 {[%emt 0:00:29]} 44. c4 {[%emt 0:00:05]} b4 {[%emt 0:00:56]} 45. Rxb4 {
[%emt 0:00:05]} Rxb4 {[%emt 0:00:04]} 46. Rxb4 {[%emt 0:00:03]} Kc5 {[%emt 0:
00:07]} 47. Rb7 {[%emt 0:00:45]} Kxc4 {[%emt 0:00:42]} 48. Ke4 {[%emt 0:03:40]}
Kc5 {[%emt 0:00:42]} 49. Rxh7 {[%emt 0:01:54]} Nf4 {[%emt 0:00:07]} 50. Rd7 $1
{[%emt 0:02:11] Coupant le K} Nh3 {[%emt 0:05:40]} 51. Rd2 {[%emt 0:00:18]}
Ng5+ {[%emt 0:00:51]} 52. Kf5 {[%emt 0:01:39]} Kc4 {[%emt 0:00:29]} 53. Ra2 {
[%emt 0:01:53]} Kd4 {[%emt 0:02:26]} 54. Kxf6 {[%emt 0:01:33]} Ne4+ {[%emt 0:
00:24]} 55. Kf5 {[%emt 0:00:31]} Nd6+ {[%emt 0:00:10]} 56. Kg4 {[%emt 0:03:55]}
Kd5 {[%emt 0:00:20]} 57. Re2 {[%emt 0:00:42]} Ne4 {[%emt 0:00:58]} 58. Kf3 {
[%emt 0:01:18]} Ng5+ {[%emt 0:00:45]} 59. Ke3 {[%emt 0:00:13]} Ne4 {[%emt 0:00:
19]} 60. Rc2 {[%emt 0:00:15]} Nd6 {[%emt 0:00:12]} 61. Kf3 {[%emt 0:00:36]} Ke6
{[%emt 0:01:59]} 62. Kg4 {[%emt 0:00:08]} Ne4 {[%emt 0:01:08]} 63. Re2 {
[%emt 0:00:16]} Kd5 {[%emt 0:00:13]} 64. f3 {[%emt 0:01:24]} Nd6 {[%emt 0:00:
20]} 65. Kg5 {[%emt 0:00:00]} e4 {[%emt 0:23:19]} 66. f4 $18 {[%emt 0:01:06]}
Nb5 {[%emt 0:00:18]} 67. f5 {[%emt 0:01:43]} Nd4 {[%emt 0:00:14]} 68. Ra2 {
[%emt 0:01:53]} e3 {[%emt 0:00:41]} 69. f6 {[%emt 0:00:34]} e2 {[%emt 0:00:28]}
70. Ra1 {[%emt 0:00:10]} Nf3+ {[%emt 0:02:29]} 71. Kg6 {[%emt 0:02:03]} Kd4 {
[%emt 0:00:36]} 72. Kf5 {[%emt 0:01:10]} Nh4+ {[%emt 0:01:29]} 73. Kg5 {
[%emt 0:04:24]} Nf3+ {[%emt 0:00:04]} 74. Kf4 {[%emt 0:00:26]} Ne5 {[%emt 0:00:
35]} 75. Ra4+ {[%emt 0:02:03]} Kd3 {[%emt 0:00:52]} 76. Ra3+ {[%emt 0:00:14]}
Kd4 {[%emt 0:00:14]} 77. Re3 {[%emt 0:00:42]} Ng4 {[%emt 0:00:47]} 78. Re4+ {
[%emt 0:00:23]} 1-0